fUSD/lending_fUSD_20250417
["ID","MTS","AMOUNT","RATE_DAILY","PERIOD"]
[358316410,1744929044852,-2210.13259537,0.00078,78]
[358316411,1744929044863,-7605.72871212,0.00078,78]
[358316412,1744929044875,-1509.09021663,0.00078,78]
[358316413,1744929044886,-782.06728849,0.00078,78]
[358316414,1744929044897,-14662.35896906,0.00078,78]
[358316415,1744929044909,-836.64545722,0.00078,78]
[358316416,1744929044920,-369.12270208,0.00078,78]
[358316417,1744929044931,-4908.14087623,0.00078,78]
[358316418,1744929044943,-4955.95916019,0.00078,78]
[358316419,1744929044955,-5241.26778088,0.00078,78]
[358316420,1744929044964,-5391.14881109,0.0008,120]
[358316421,1744929044975,-293.86565485,0.0008,120]
[358316422,1744929044986,-2167.60937502,0.0008,120]
[358316423,1744929044997,-713.3523371,0.0008,120]
[358316425,1744929046165,-691.0,0.0008,60]
[358316426,1744929046175,-14997.82793323,0.0008,120]
[358316427,1744929046284,-260.63,0.0008,120]
[358316428,1744929046296,-55941.03316777,0.0008,120]
[358316429,1744929046307,-94135.50830085,0.0008,120]
[358316430,1744929046347,-2870.97047481,0.0008,120]
[358316431,1744929046360,-42539.10079795,0.0008,120]
[358316432,1744929046370,-63237.95688731,0.0008,120]
[358316433,1744929046388,-1135.375005,0.0008,120]
[358316434,1744929046419,-6428.23427892,0.0008,120]
[358316435,1744929046460,-49.95412362,0.0008,120]
[358316436,1744929046536,-382.02824371,0.0008,120]
[358316443,1744929294379,489.97,0.00021836,2]
[358316447,1744929953139,-250.0,0.000328,2]
[358316448,1744929953161,-150.0,0.00034548,10]
[358316449,1744929953182,-15.83616194,0.0003665,2]
[358316450,1744930026102,-588.13563952,0.0003665,2]
[358316451,1744930026124,-250.0,0.00038669,2]
[358316452,1744930026150,-223.99044841,0.0003998,2]
[358316453,1744930030088,-26.00955159,0.0003998,2]
[358316454,1744930030109,-250.0,0.00040315,2]
[358316455,1744930030131,-1392.10635931,0.00040484,2]
[358316456,1744930034092,-199.69442101,0.00040688,2]
[358316457,1744930034114,-35.42001916,0.00040788,2]
[358316458,1744930050221,-1594.671751,0.00040584,2]
[358316459,1744930050364,-115.9983589,0.00040788,2]
[358316460,1744930050389,-828.9963,0.00040888,7]
[358316461,1744930050411,-248.69889,0.00040888,30]
[358316462,1744930050433,-150.0,0.00041068,2]
[358316463,1744930050454,-248.69889,0.00041088,30]
[358316464,1744930050474,-343.09525376,0.00041095,2]
[358316465,1744930050496,-550.0,0.00041287,5]
[358316466,1744930050518,-480.0,0.00041287,5]
[358316467,1744930050538,-248.69889,0.00041288,30]
[358316468,1744930050559,-7174.1640957,0.00041288,2]
[358316469,1744930050580,-185.586088,0.00041288,30]
[358316470,1744930050601,-248.69889,0.00041488,30]
[358316471,1744930050621,-304.08655985,0.00041687,60]
[358316472,1744930050642,-248.69889,0.00041688,30]
[358316473,1744930050663,-248.69889,0.00041888,30]
[358316474,1744930050684,-248.69889,0.00042088,30]
[358316475,1744930050705,-550.0,0.00042287,4]
[358316476,1744930050726,-141.31232638,0.00042288,30]
[358316477,1744930052116,-107.38656362,0.00042288,30]
[358316478,1744930052137,-920.06434627,0.00042288,2]
[358316481,1744930154142,-253.72,0.00032885,2]
[358316482,1744930154162,-151.0,0.00033121,2]
[358316483,1744930154183,-44.34111921,0.00042188,2]
[358316484,1744930165098,-109.7025924,0.00042188,2]
[358316485,1744930165118,-548.88532167,0.00042288,2]
[358316486,1744930167111,-2789.41033206,0.00042288,2]
[358316487,1744930167132,-150.99,0.00042288,30]
[358316488,1744930167154,-999.99,0.00042288,2]
[358316489,1744930167174,-7931.1461018,0.00042288,2]
[358316491,1744930232269,-2068.8438982,0.00042288,2]
[358316492,1744930232279,-1178.47,0.00042288,2]
[358316493,1744930232288,-251.87,0.00042288,2]
[358316494,1744930232298,-332.58,0.00042288,2]
[358316495,1744930232308,-881.9,0.00042288,2]
[358316496,1744930232318,-250.0,0.00042288,2]
[358316497,1744930232327,-248.69889,0.00042488,30]
[358316498,1744930232336,-1837.03798038,0.00042638,2]
[358316499,1744930232346,-77019.76181456,0.00042639,2]
[358316500,1744930232355,-248.69889,0.00042688,30]
[358316501,1744930232365,-248.69889,0.00042888,30]
[358316502,1744930232374,-248.69889,0.00043088,30]
[358316503,1744930232383,-2534.19,0.00043088,2]
[358316504,1744930232396,-9999.99,0.00043088,2]
[358316505,1744930232407,-248.69889,0.00043288,30]
[358316506,1744930232416,-248.69889,0.00043488,30]
[358316507,1744930232425,-437.66,0.00043488,2]
[358316508,1744930232437,-732.26,0.00043488,2]
[358316509,1744930232446,-11070.48,0.00043488,30]
[358316510,1744930232456,-150.99,0.00043488,2]
[358316511,1744930232465,-1802.48539937,0.00043499,2]
[358316512,1744930232475,-248.69889,0.00043688,30]
[358316513,1744930232485,-423.8,0.00043877,2]
[358316514,1744930232495,-248.69889,0.00044088,30]
[358316515,1744930232504,-248.69889,0.00044288,30]
[358316516,1744930232514,-510.84,0.00044288,2]
[358316517,1744930232523,-1533.57,0.00044288,2]
[358316518,1744930232532,-1852.42,0.00044418,120]
[358316519,1744930232542,-2000.0,0.00044441,120]
[358316520,1744930232551,-248.69889,0.00044488,30]
[358316521,1744930232560,-1680.88,0.00044563,120]
[358316522,1744930232569,-248.69889,0.00044688,30]
[358316523,1744930232579,-248.69889,0.00044888,30]
[358316524,1744930232589,-151.0,0.00045,120]
[358316525,1744930232598,-200.0,0.00045032,2]
[358316526,1744930232607,-248.69889,0.00045088,30]
[358316527,1744930232616,-248.69889,0.00045288,30]
[358316528,1744930232628,-248.69889,0.00045488,30]
[358316529,1744930232638,-150.0,0.00045589,10]
[358316530,1744930232648,-248.69889,0.00045688,30]
[358316531,1744930232657,-248.69889,0.00045888,30]
[358316532,1744930232667,-248.69889,0.00046088,30]
[358316533,1744930232676,-248.69889,0.00046288,30]
[358316534,1744930232685,-248.69889,0.00046488,30]
[358316535,1744930232695,-250.0,0.00046517,2]
[358316536,1744930232704,-248.69889,0.00046688,30]
[358316537,1744930232713,-248.69889,0.00046888,30]
[358316538,1744930232724,-236.38,0.00048921,2]
[358316539,1744930232733,-506.72626652,0.00049315,2]
[358316542,1744930232742,-2748.33,0.00050773,2]
[358316546,1744930232751,-2422.69,0.00050936,120]
[358316549,1744930232761,-23900.0,0.00050956,2]
[358316553,1744930232770,-151.0,0.00052,120]
[358316557,1744930232779,-163.71,0.00052716,120]
[358316560,1744930232789,-151.0,0.000536,100]
[358316563,1744930232797,-151.0,0.00054384,120]
[358316565,1744930232807,-167.85,0.00054402,2]
[358316568,1744930232816,-153.54,0.000552,54]
[358316571,1744930232825,-151.0,0.00056767,120]
[358316574,1744930232834,-167.85,0.00058891,2]
[358316577,1744930232843,-151.0,0.00059151,120]
[358316580,1744930232852,-151.0,0.00061534,120]
[358316583,1744930232861,-1007.77299094,0.00062199,13]
[358316586,1744930232871,-223.0,0.00062359,120]
[358316589,1744930232880,-6988.15,0.00062459,2]
[358316593,1744930232889,-167.85,0.0006338,2]
[358316596,1744930232899,-450.95,0.00063661,30]
[358316599,1744930232908,-151.0,0.00063918,120]
[358316601,1744930232917,-500.0,0.00064658,120]
[358316603,1744930232926,-600.0,0.00064776,120]
[358316605,1744930232935,-151.0,0.00066301,120]
[358316607,1744930232945,-500.0,0.00067121,15]
[358316609,1744930232954,-1282.77119596,0.00067263,120]
[358316611,1744930232963,-500.0,0.000676,15]
[358316613,1744930232973,-165.10370632,0.00068393,28]
[358316615,1744930232982,-811.798,0.00068492,120]
[358316617,1744930232991,-9999.99,0.00068492,2]
[358316619,1744930233000,-181.75158092,0.00068492,120]
[358316621,1744930233010,-161.21578699,0.00068492,120]
[358316623,1744930233019,-500.0,0.00068492,120]
[358316625,1744930233028,-500.0,0.00068492,120]
[358316627,1744930233037,-500.0,0.00068492,120]
[358316629,1744930233046,-500.0,0.00068492,120]
[358316631,1744930233055,-500.0,0.00068492,120]
[358316633,1744930233064,-500.0,0.00068492,120]
[358316634,1744930233074,-216.99665201,0.00068492,120]
[358316637,1744930233084,-500.0,0.00068492,120]
[358316639,1744930233093,-500.0,0.00068492,120]
[358316641,1744930233103,-500.0,0.00068492,120]
[358316643,1744930233113,-600.0,0.00068492,120]
[358316644,1744930233122,-500.0,0.00068492,120]
[358316646,1744930233131,-450.0,0.00068492,120]
[358316648,1744930233140,-500.0,0.00068493,120]
[358316650,1744930233151,-500.0,0.00068493,120]
[358316653,1744930233161,-500.0,0.00068493,120]
[358316654,1744930233170,-500.0,0.00068493,60]
[358316657,1744930233180,-514.23927904,0.00068493,120]
[358316658,1744930233189,-514.04770604,0.00068493,120]
[358316660,1744930233199,-500.0,0.00068493,120]
[358316661,1744930233209,-524.96097962,0.00068493,120]
[358316662,1744930233219,-500.0,0.00068493,120]
[358316663,1744930233229,-500.0,0.00068493,120]
[358316664,1744930233238,-500.0,0.00068493,120]
[358316665,1744930233248,-556.04457897,0.00068493,120]
[358316666,1744930233258,-500.0,0.00068493,120]
[358316667,1744930233267,-504.5930849,0.00068493,120]
[358316668,1744930233277,-509.06263834,0.00068493,120]
[358316669,1744930233286,-500.0,0.00068493,120]
[358316670,1744930233299,-521.95971181,0.00068493,120]
[358316671,1744930233310,-510.58422793,0.00068493,120]
[358316672,1744930233319,-13.25623151,0.00068493,120]
[358316673,1744930233337,-307.00192807,0.00068493,120]
[358316674,1744930233348,-179.74184042,0.00068493,120]
[358316675,1744930233358,-500.0,0.00068493,120]
[358316676,1744930233367,-530.06099091,0.00068493,120]
[358316677,1744930233376,-288.57573736,0.00068493,120]
[358316678,1744930233392,-243.13473618,0.00068493,120]
[358316679,1744930233401,-522.91520259,0.00068493,120]
[358316680,1744930233412,-5.3669643,0.00068493,120]
[358316681,1744930233422,-500.0,0.00068493,120]
[358316682,1744930233431,-440.81817929,0.00068493,120]
[358316683,1744930233441,-500.0,0.00068493,120]
[358316684,1744930233450,-325.26906605,0.00068493,120]
[358316685,1744930233461,-174.73093395,0.00068493,120]
[358316686,1744930233471,-500.0,0.00068493,120]
[358316687,1744930233481,-500.0,0.00068493,120]
[358316688,1744930233490,-533.51,0.00068493,120]
[358316689,1744930233499,-500.0,0.00068493,120]
[358316690,1744930233509,-500.0,0.00068493,120]
[358316691,1744930233518,-218.38,0.00068493,120]
[358316692,1744930233528,-144.71216096,0.00068493,120]
[358316693,1744930233539,-355.28783904,0.00068493,120]
[358316694,1744930233547,-500.0,0.00068493,120]
[358316695,1744930233556,-500.0,0.00068493,120]
[358316696,1744930233565,-601.64,0.00068493,120]
[358316697,1744930233575,-453.47542057,0.00068493,120]
[358316698,1744930233585,-500.0,0.00068493,120]
[358316699,1744930233594,-500.0,0.00068493,120]
[358316700,1744930233604,-500.0,0.00068493,120]
[358316701,1744930233613,-500.0,0.00068493,120]
[358316702,1744930233622,-625.57,0.00068493,120]
[358316703,1744930233632,-515.39653823,0.00068493,120]
[358316704,1744930233641,-382.85606785,0.00068493,120]
[358316705,1744930233651,-461.10950296,0.00068493,120]
[358316706,1744930233660,-500.0,0.00068493,120]
[358316707,1744930233670,-500.0,0.00068493,120]
[358316708,1744930233680,-500.0,0.00068493,120]
[358316709,1744930233689,-500.0,0.00068493,120]
[358316710,1744930233699,-500.0,0.00068493,120]
[358316711,1744930233709,-546.04521997,0.00068493,120]
[358316712,1744930233720,-500.0,0.00068493,120]
[358316713,1744930233729,-500.0,0.00068493,120]
[358316714,1744930233739,-500.0,0.00068493,120]
[358316715,1744930233749,-200.80692781,0.00068493,120]
[358316716,1744930233792,-79.40307219,0.00068493,120]
[358316717,1744930233802,-443.98277337,0.00068493,120]
[358316718,1744930233813,-56.01722663,0.00068493,120]
[358316719,1744930233823,-500.0,0.00068493,120]
[358316720,1744930233833,-500.0,0.00068493,120]
[358316721,1744930233843,-300.0,0.00068493,120]
[358316722,1744930233853,-500.0,0.00068493,120]
[358316723,1744930233863,-361.37,0.00068493,120]
[358316724,1744930233873,-256.67164329,0.00068493,120]
[358316725,1744930233882,-500.0,0.00068493,120]
[358316726,1744930233893,-253.51,0.00068493,120]
[358316727,1744930233902,-500.0,0.00068493,120]
[358316728,1744930233912,-500.0,0.00068493,120]
[358316729,1744930233921,-500.0,0.00068493,120]
[358316730,1744930233931,-500.0,0.00068493,120]
[358316731,1744930233940,-152.77,0.00068493,120]
[358316732,1744930233950,-1000.0,0.00068493,120]
[358316733,1744930233959,-441.11421888,0.00068493,120]
[358316734,1744930233970,-536.48,0.00068493,120]
[358316735,1744930233979,-500.0,0.00068493,120]
[358316736,1744930233989,-500.0,0.00068493,120]
[358316737,1744930233998,-500.0,0.00068493,120]
[358316738,1744930234007,-542.01,0.00068493,120]
[358316739,1744930234017,-500.0,0.00068493,120]
[358316740,1744930234026,-496.12,0.00068493,120]
[358316741,1744930234036,-548.3276664,0.00068493,120]
[358316742,1744930234045,-500.0,0.00068493,120]
[358316743,1744930234054,-500.0,0.00068493,120]
[358316744,1744930234064,-500.0,0.00068493,120]
[358316745,1744930234074,-500.0,0.00068493,120]
[358316746,1744930234083,-464.72,0.00068493,120]
[358316747,1744930234093,-500.0,0.00068493,120]
[358316748,1744930234102,-202.66,0.00068493,120]
[358316749,1744930234112,-500.0,0.00068493,120]
[358316750,1744930234122,-500.0,0.00068493,120]
[358316751,1744930234132,-597.9,0.00068493,120]
[358316752,1744930234142,-511.11612763,0.00068493,120]
[358316753,1744930234151,-500.0,0.00068493,120]
[358316754,1744930234161,-500.0,0.00068493,120]
[358316755,1744930234170,-500.0,0.00068493,120]
[358316756,1744930234180,-500.0,0.00068493,120]
[358316757,1744930234190,-500.0,0.00068493,120]
[358316758,1744930234199,-527.54,0.00068493,120]
[358316759,1744930234209,-500.0,0.00068493,120]
[358316760,1744930234219,-500.0,0.00068493,120]
[358316761,1744930234228,-536.99967452,0.00068493,120]
[358316762,1744930234238,-500.0,0.00068493,120]
[358316763,1744930234248,-362.55809188,0.00068493,120]
[358316764,1744930234257,-500.0,0.00068493,120]
[358316765,1744930234266,-500.0,0.00068493,120]
[358316766,1744930234276,-500.0,0.00068493,120]
[358316767,1744930234285,-500.0,0.00068493,120]
[358316768,1744930234394,-506.65,0.00068493,120]
[358316769,1744930234404,-500.0,0.00068493,120]
[358316770,1744930234413,-500.0,0.00068493,120]
[358316771,1744930234422,-500.0,0.00068493,120]
[358316772,1744930234433,-500.0,0.00068493,120]
[358316773,1744930234442,-166.52,0.00068493,120]
[358316774,1744930234451,-500.0,0.00068493,120]
[358316775,1744930234461,-500.0,0.00068493,120]
[358316776,1744930234470,-610.06,0.00068493,120]
[358316777,1744930234479,-500.0,0.00068493,120]
[358316778,1744930234488,-500.0,0.00068493,120]
[358316779,1744930234497,-504.30172002,0.00068493,120]
[358316780,1744930234507,-500.0,0.00068493,120]
[358316781,1744930234517,-500.0,0.00068493,120]
[358316782,1744930234526,-500.0,0.00068493,120]
[358316783,1744930234536,-500.0,0.00068493,120]
[358316784,1744930234546,-168.54,0.00068493,120]
[358316785,1744930234555,-500.0,0.00068493,120]
[358316786,1744930234565,-500.0,0.00068493,120]
[358316787,1744930234575,-518.93,0.00068493,120]
[358316788,1744930234584,-488.0,0.00068493,120]
[358316789,1744930234594,-153.16710522,0.00068493,120]
[358316790,1744930234611,-759.42,0.00068483,30]
[358316791,1744930234625,-363.73661679,0.00068493,120]
[358316792,1744930234634,-500.0,0.00068493,120]
[358316793,1744930234644,-500.0,0.00068493,120]
[358316794,1744930234653,-639.19,0.00068493,120]
[358316795,1744930234662,-500.0,0.00068493,120]
[358316796,1744930234671,-500.0,0.00068493,120]
[358316797,1744930234680,-500.0,0.00068493,120]
[358316798,1744930234690,-343.17,0.00068493,120]
[358316799,1744930234699,-527.4568331,0.00068493,120]
[358316800,1744930234709,-500.0,0.00068493,120]
[358316801,1744930234718,-500.0,0.00068493,120]
[358316802,1744930234729,-270.01,0.00068493,120]
[358316803,1744930234738,-500.0,0.00068493,120]
[358316804,1744930234747,-500.0,0.00068493,120]
[358316805,1744930234757,-560.74,0.00068493,120]
[358316806,1744930234766,-436.27658011,0.00068493,120]
[358316807,1744930234778,-63.72341989,0.00068493,120]
[358316808,1744930234787,-500.0,0.00068493,120]
[358316809,1744930234796,-194.16658061,0.00068493,120]
[358316810,1744930234811,-305.83341939,0.00068493,120]
[358316811,1744930234820,-356.19513035,0.00068493,120]
[358316812,1744930234835,-143.80486965,0.00068493,120]
[358316813,1744930234845,-174.71714797,0.00068493,120]
[358316814,1744930234854,-290.29028457,0.00068493,120]
[358316815,1744930234863,-517.17843072,0.00068493,120]
[358316816,1744930234873,-500.0,0.00068493,120]
[358316817,1744930234882,-500.0,0.00068493,120]
[358316818,1744930234891,-500.0,0.00068493,120]
[358316819,1744930234900,-531.25002038,0.00068493,120]
[358316820,1744930234910,-507.50894623,0.00068493,120]
[358316821,1744930234920,-632.83699509,0.00068493,120]
[358316822,1744930234929,-500.0,0.00068493,120]
[358316823,1744930234939,-500.0,0.00068493,120]
[358316824,1744930234948,-500.0,0.00068493,120]
[358316825,1744930234958,-68.00394227,0.00068493,120]
[358316826,1744930234971,-431.99605773,0.00068493,120]
[358316827,1744930234980,-500.0,0.00068493,120]
[358316828,1744930234990,-500.0,0.00068493,120]
[358316829,1744930234999,-500.0,0.00068493,120]
[358316830,1744930235008,-500.0,0.00068493,120]
[358316831,1744930235018,-500.0,0.00068493,120]
[358316832,1744930235028,-500.0,0.00068493,120]
[358316833,1744930235038,-500.0,0.00068493,120]
[358316834,1744930235048,-593.0,0.00068493,120]
[358316835,1744930235059,-500.0,0.00068493,120]
[358316836,1744930235068,-500.0,0.00068493,120]
[358316837,1744930235077,-344.71,0.00068493,120]
[358316838,1744930235087,-500.0,0.00068493,120]
[358316839,1744930235096,-500.0,0.00068493,120]
[358316840,1744930235105,-500.0,0.00068493,120]
[358316841,1744930235115,-500.0,0.00068493,120]
[358316842,1744930235126,-484.07,0.00068493,120]
[358316843,1744930235136,-500.0,0.00068493,120]
[358316844,1744930235146,-500.0,0.00068493,120]
[358316845,1744930235156,-523.29,0.00068493,120]
[358316846,1744930235165,-101.86613641,0.00068493,120]
[358316847,1744930235177,-398.13386359,0.00068493,120]
[358316848,1744930235186,-254.15,0.00068493,120]
[358316849,1744930235195,-527.80592133,0.00068493,120]
[358316850,1744930235204,-638.53234615,0.00068493,120]
[358316851,1744930238423,-759.42,0.00068483,30]
[358316852,1744930238433,-759.42,0.00068483,30]
[358316853,1744930238443,-759.42,0.00068483,30]
[358316854,1744930238452,-242.31765385,0.00068493,120]
[358316855,1744930238461,-183.68092461,0.000685,15]
[358316856,1744930238471,-156.3943608,0.000685,15]
[358316857,1744930238479,-500.0,0.000685,15]
[358316858,1744930238488,-151.0,0.00068685,120]
[358316859,1744930238497,-500.0,0.0006909,15]
[358316860,1744930238506,-336.0,0.00070714,120]
[358316861,1744930238515,-2748.33,0.00071082,30]
[358316862,1744930238524,-759.42,0.00071216,30]
[358316863,1744930238533,-535.09706074,0.00071226,120]
[358316864,1744930238545,-752.90293926,0.00071226,120]
[358316865,1744930238555,-348.41707434,0.00071226,120]
[358316866,1744930238566,-1698.58292566,0.00071226,120]
[358316867,1744930238576,-915.40087142,0.00071226,120]
[358316868,1744930238587,-412.59912858,0.00071226,120]
[358316869,1744930238596,-16.10087232,0.00071226,120]
[358316870,1744930238607,-137.42112768,0.00071226,120]
[358316871,1744930238617,-791.0,0.00071226,2]
[358316872,1744930238626,-1438.0,0.00071226,120]
[358316873,1744930238636,-907.0,0.00071226,120]
[358316874,1744930238645,-545.0,0.00071226,120]
[358316875,1744930238654,-1280.0,0.00071226,120]
[358316876,1744930238663,-656.988,0.00071226,120]
[358316877,1744930238672,-4147.0,0.00071226,120]
[358316878,1744930238681,-2136.0,0.00071226,2]
[358316879,1744930238690,-678.398,0.00071226,120]
[358316880,1744930238699,-152.0,0.00071226,2]
[358316881,1744930238708,-1124.0,0.00071226,120]
[358316882,1744930238717,-2399.10647571,0.00072,120]
[358316883,1744930238727,-165.10370631,0.0007227,28]
[358316884,1744930238738,-759.42,0.00072956,30]
[358316885,1744930238747,-500.0,0.00072966,120]
[358316886,1744930238757,-500.0,0.00072966,120]
[358316887,1744930238767,-244.45479447,0.00072966,120]
[358316888,1744930238778,-255.54520553,0.00072966,120]
[358316889,1744930238787,-388.6,0.00072966,120]
[358316890,1744930238797,-405.85479447,0.00072966,120]
[358316891,1744930238807,-94.14520553,0.00072966,120]
[358316892,1744930238818,-1379.15,0.00072966,120]
[358316894,1744930238826,-1379.15,0.00072966,120]
[358316896,1744930238835,-500.0,0.00072966,120]
[358316898,1744930238843,-500.0,0.00072966,120]
[358316900,1744930238852,-322.54,0.00072966,120]
[358316902,1744930238862,-500.0,0.00072966,120]
[358316904,1744930238871,-409.8,0.00072966,120]
[358316906,1744930238880,-500.0,0.00072966,120]
[358316908,1744930238889,-500.0,0.00072966,120]
[358316909,1744930238898,-500.0,0.00072966,120]
[358316911,1744930238907,-301.2,0.00072966,120]
[358316914,1744930238917,-605.98,0.00072966,120]
[358316915,1744930238926,-500.0,0.00072966,120]
[358316917,1744930238937,-500.0,0.00072966,120]
[358316919,1744930238947,-512.28,0.00072966,120]
[358316921,1744930238956,-500.0,0.00072966,120]
[358316924,1744930238967,-500.0,0.00072966,120]
[358316925,1744930238976,-500.0,0.00072966,120]
[358316927,1744930238985,-222.72,0.00072966,120]
[358316929,1744930238995,-500.0,0.00072966,120]
[358316931,1744930239004,-500.0,0.00072966,120]
[358316933,1744930239014,-500.0,0.00072966,120]
[358316935,1744930239023,-500.0,0.00072966,120]
[358316937,1744930239032,-500.0,0.00072966,120]
[358316939,1744930239041,-500.0,0.00072966,120]
[358316941,1744930239051,-500.0,0.00072966,120]
[358316943,1744930239061,-500.0,0.00073079,15]
[358316945,1744930239070,-410.33492546,0.00073979,15]
[358316947,1744930239079,-1000.0,0.00074,120]
[358316949,1744930239088,-1000.0,0.00074,120]
[358316951,1744930239097,-1288.0,0.00074226,120]
[358316953,1744930239106,-1829.0,0.00074226,2]
[358316955,1744930239115,-1122.0,0.00074226,120]
[358316957,1744930239124,-150.0,0.00074316,30]
[358316959,1744930239134,-309.26,0.0007434,2]
[358316961,1744930239143,-3558.43575554,0.000745,120]
[358316963,1744930239151,-1000.000001,0.000745,120]
[358316964,1744930239161,-1698.8155795,0.00075,76]
[358316965,1744930239170,-1000.0,0.00075,120]
[358316966,1744930239179,-551.31,0.00075103,2]
[358316967,1744930239188,-150.0,0.00075344,2]
[358316968,1744930239197,-759.42,0.00075434,30]
[358316969,1744930239206,-500.0,0.00075443,120]
[358316970,1744930239215,-336.89765641,0.00075443,120]
[358316971,1744930239224,-500.0,0.00075443,120]
[358316972,1744930239234,-500.0,0.00075443,120]
[358316973,1744930239242,-500.0,0.00075443,120]
[358316974,1744930239341,-500.0,0.00075443,120]
[358316975,1744930239352,-500.0,0.00075443,120]
[358316976,1744930239361,-500.0,0.00075443,120]
[358316977,1744930239371,-500.0,0.00075443,120]
[358316978,1744930239380,-500.0,0.00075443,120]
[358316979,1744930239392,-321.03,0.00075443,120]
[358316980,1744930239401,-605.83,0.00075443,120]
[358316981,1744930239411,-500.0,0.00075443,120]
[358316982,1744930239420,-566.80960203,0.00075443,120]
[358316983,1744930239431,-500.0,0.00075443,120]
[358316984,1744930239440,-279.5,0.00075443,120]
[358316985,1744930239449,-8415.28,0.00075444,2]
[358316986,1744930239459,-1000.0,0.000755,120]
[358316987,1744930239469,-200.0,0.00075507,30]
[358316988,1744930239479,-500.0,0.00075507,30]
[358316989,1744930239488,-200.0,0.00075966,2]
[358316990,1744930239497,-1800.0,0.00076,77]
[358316991,1744930239506,-1000.0,0.00076,120]
[358316992,1744930239515,-1000.0,0.00076,120]
[358316993,1744930239524,-759.42,0.00076141,30]
[358316994,1744930239534,-165.10370631,0.00076147,28]
[358316995,1744930239544,-512.69613465,0.00076151,120]
[358316996,1744930239553,-500.0,0.00076151,120]
[358316997,1744930239562,-500.0,0.00076151,120]
[358316998,1744930239572,-500.0,0.00076151,120]
[358316999,1744930239582,-500.0,0.00076151,120]
[358317000,1744930239591,-500.0,0.00076151,120]
[358317001,1744930239599,-500.0,0.00076151,120]
[358317002,1744930239608,-271.84,0.00076151,120]
[358317003,1744930239617,-506.42,0.00076151,120]
[358317004,1744930239627,-500.0,0.00076151,120]
[358317005,1744930239636,-559.87,0.00076151,120]
[358317006,1744930239646,-517.91,0.00076151,120]
[358317007,1744930239655,-500.0,0.00076151,120]
[358317008,1744930239664,-500.0,0.00076151,120]
[358317009,1744930239674,-500.0,0.00076151,120]
[358317010,1744930239683,-500.0,0.00076151,120]
[358317011,1744930239692,-500.0,0.00076151,120]
[358317012,1744930239701,-500.0,0.00076151,120]
[358317013,1744930239710,-592.56,0.00076151,120]
[358317014,1744930239721,-500.0,0.00076151,120]
[358317015,1744930239730,-500.0,0.00076151,120]
[358317016,1744930239741,-516.56,0.00076151,120]
[358317017,1744930239750,-500.0,0.00076151,120]
[358317018,1744930239760,-500.0,0.00076151,120]
[358317019,1744930239770,-500.0,0.00076151,120]
[358317020,1744930239779,-500.0,0.00076151,120]
[358317021,1744930239789,-500.0,0.00076151,120]
[358317022,1744930239798,-500.0,0.00076151,120]
[358317023,1744930239807,-500.0,0.00076151,120]
[358317024,1744930239816,-503.82960482,0.00076151,120]
[358317025,1744930239825,-500.0,0.00076151,120]
[358317026,1744930239835,-500.0,0.00076151,120]
[358317027,1744930239844,-500.0,0.00076151,120]
[358317028,1744930239853,-500.0,0.00076151,120]